bitfinex/quotes_SOLUSD_20251119
["timestamp","ask_amount","ask_price","bid_price","bid_amount"]
[1763515228648,9.78882769,141.06,141.04,4.22]
[1763515228850,10.47882769,141.06,141.04,4.22]
[1763515229427,10.47882769,141.06,141.02,24.15758417]
[1763515229641,10.47882769,141.06,141.03,4.22]
[1763515230261,9.78882769,141.06,141.03,4.88]
[1763515230465,0.2,141.07,141.03,4.88]
[1763515230635,9.78882769,141.06,141.03,9.59662417]
[1763515230837,0.2,141.07,141.05,5.37662417]
[1763515231076,0.2,141.07,141.06,9.59662417]
[1763515231429,0.2,141.07,141.06,10.25662417]
[1763515235057,0.2,141.07,141.06,22.34096]
[1763515235260,0.2,141.07,141.06,18.12096]
[1763515235480,0.2,141.07,141.06,22.34096]
[1763515235791,0.2,141.09,141.06,10.25662417]
[1763515235989,0.2,141.09,141.08,23.49758417]
[1763515236362,0.2,141.12,141.11,18.12096]
[1763515236564,0.69,141.18,141.11,27.71758417]
[1763515236773,9.78882769,141.17,141.12,10.25662417]
[1763515236974,10.47882769,141.17,141.13,5.37662417]
[1763515237286,9.78882769,141.15,141.14,4.22]
[1763515237590,5.37662417,141.18,141.14,4.22]
[1763515237591,0.69,141.17,141.14,4.22]
[1763515239084,9.78882769,141.18,141.14,10.25662417]
[1763515239283,6.26662417,141.21,141.16,5.37662417]
[1763515239574,6.26662417,141.21,141.17,4.22]
[1763515239575,9.78882769,141.19,141.17,4.22]
[1763515241075,0.69,141.19,141.17,4.22]
[1763515241269,0.69,141.19,141.16,5.37662417]
[1763515241468,0.69,141.19,141.17,4.22]
[1763515242986,6.26662417,141.21,141.17,4.22]
[1763515243302,9.78882769,141.19,141.17,4.22]
[1763515243800,9.78882769,141.19,141.16,5.37662417]
[1763515244002,0.69,141.2,141.17,4.22]
[1763515244507,0.69,141.2,141.18,4.22]
[1763515245292,0.2,141.21,141.18,9.59662417]
[1763515245495,0.2,141.21,141.19,0.72]
[1763515245701,0.2,141.21,141.2,4.22]
[1763515246583,0.2,141.21,141.2,4.94]
[1763515247693,0.2,141.21,141.2,10.31662417]
[1763515249290,0.1,141.22,141.2,10.31662417]
[1763515249607,0.1,141.22,141.21,18.84096]
[1763515249902,0.1,141.22,141.21,24.21758417]
[1763515250400,0.1,141.22,141.21,28.43758417]
[1763515251208,9.78882769,141.25,141.21,28.43758417]
[1763515251416,9.78882769,141.25,141.22,0.72]
[1763515251906,5.37662417,141.26,141.22,18.84096]
[1763515252375,0.2,141.27,141.23,6.09662417]
[1763515252584,0.2,141.27,141.24,9.59662417]
[1763515252805,0.2,141.27,141.24,13.89580067]
[1763515253010,0.2,141.27,141.25,0.72]
[1763515253179,0.2,141.27,141.24,4.94]
[1763515253378,0.89,141.27,141.23,9.78882769]
[1763515253574,0.89,141.27,141.24,4.22]
[1763515253883,10.47882769,141.26,141.24,4.22]
[1763515254298,9.78882769,141.26,141.24,4.22]
[1763515254501,9.78882769,141.26,141.25,0.72]
[1763515254811,0.2,141.27,141.25,0.72]
[1763515254986,0.2,141.27,141.24,13.89580067]
[1763515256082,0.2,141.27,141.24,4.94]
[1763515256277,18.74462836,141.26,141.22,18.12096]
[1763515256497,19.43462836,141.26,141.23,4.22]
[1763515256689,10.47882769,141.26,141.23,4.22]
[1763515257677,9.98882769,141.27,141.23,4.94]
[1763515259084,9.98882769,141.27,141.23,13.17580067]
[1763515259281,9.98882769,141.27,141.24,0.72]
[1763515259487,0.2,141.27,141.24,9.67580067]
[1763515259702,0.2,141.27,141.24,10.70882769]
[1763515259915,0.2,141.27,141.24,0.72]
[1763515260222,0.2,141.27,141.25,27.79676067]
[1763515260517,0.2,141.27,141.26,4.22]
[1763515260700,0.2,141.27,141.26,13.89580067]
[1763515260897,9.78882769,141.3,141.26,13.89580067]
[1763515261196,0.2,141.34,141.32,18.12096]
[1763515261396,0.2,141.34,141.33,4.22]
[1763515263201,0.2,141.34,141.33,4.94]
[1763515263599,0.2,141.34,141.33,32.01676067]
[1763515263898,0.1,141.35,141.33,32.01676067]
[1763515264098,0.1,141.35,141.34,9.67580067]
[1763515265195,0.2,141.36,141.34,9.67580067]
[1763515265393,0.2,141.44,141.38,18.12096]
[1763515265590,8.95580067,141.46,141.41,8.95580067]
[1763515265805,4.68433582,141.55,141.42,4.22]
[1763515266024,8.95580067,141.51,141.46,8.95580067]
[1763515266216,8.95580067,141.52,141.47,4.22]
[1763515266400,8.95580067,141.51,141.47,4.22]
[1763515266596,18.12096,141.53,141.45,27.07676067]
[1763515266794,8.95580067,141.48,141.46,4.22]
[1763515267023,18.74462836,141.47,141.46,4.22]
[1763515267316,9.78882769,141.47,141.46,4.22]
[1763515267732,9.15580067,141.49,141.46,4.22]
[1763515267733,9.98882769,141.49,141.46,4.22]
[1763515267902,10.64882769,141.49,141.46,4.22]
[1763515268234,9.98882769,141.49,141.46,4.22]
[1763515268402,0.2,141.49,141.46,4.94]
[1763515268593,0.2,141.49,141.46,4.22]
[1763515268798,0.2,141.49,141.46,4.94]
[1763515269225,0.2,141.49,141.47,4.22]
[1763515269430,0.2,141.49,141.47,13.89580067]
[1763515269624,0.2,141.49,141.44,18.84096]
[1763515269829,0.2,141.49,141.46,8.95580067]
[1763515270008,0.2,141.49,141.46,9.67580067]
[1763515270211,0.2,141.49,141.45,13.17580067]
[1763515270410,0.2,141.49,141.46,0.72]
[1763515270715,0.2,141.49,141.46,9.67580067]
[1763515271116,0.2,141.49,141.48,8.95580067]
[1763515271317,0.2,141.49,141.48,13.17580067]
[1763515271517,0.2,141.49,141.48,13.89580067]
[1763515272208,9.61580067,141.57,141.49,18.12096]
[1763515272409,0.66,141.59,141.52,8.95580067]
[1763515272616,8.95580067,141.6,141.54,8.95580067]
[1763515272809,8.95580067,141.61,141.55,13.17580067]
[1763515273126,8.95580067,141.59,141.55,4.22]
[1763515273327,8.95580067,141.59,141.56,4.22]
[1763515273532,9.78882769,141.58,141.56,4.22]
[1763515274211,9.78882769,141.58,141.54,0.7]
[1763515274528,9.78882769,141.58,141.55,4.22]
[1763515274998,9.61580067,141.6,141.55,4.22]
[1763515275205,9.78882769,141.59,141.57,8.95580067]
[1763515275404,9.78882769,141.59,141.58,4.22]
[1763515275619,9.78882769,141.61,141.58,4.22]
[1763515275832,18.22096,141.63,141.53,13.17580067]
[1763515275833,18.74462836,141.59,141.53,13.17580067]
[1763515275999,8.95580067,141.57,141.54,4.22]
[1763515276204,9.61580067,141.59,141.54,4.92]
[1763515276528,9.61580067,141.59,141.54,13.87580067]
[1763515276710,0.66,141.59,141.54,4.92]
[1763515276917,9.61580067,141.59,141.54,31.99676067]
[1763515277427,18.74462836,141.57,141.54,18.12096]
[1763515277731,9.78882769,141.57,141.55,4.22]
[1763515278026,9.61580067,141.56,141.55,4.22]
[1763515278235,8.95580067,141.57,141.55,4.22]
[1763515278613,9.61580067,141.57,141.55,4.22]
[1763515278827,9.78882769,141.57,141.55,4.22]
[1763515279112,8.95580067,141.61,141.56,18.82096]
[1763515279334,9.78882769,141.6,141.57,18.12096]
[1763515279525,9.78882769,141.61,141.58,4.22]
[1763515279832,19.40462836,141.61,141.58,4.22]
[1763515280217,9.78882769,141.61,141.58,4.22]
[1763515280424,9.78882769,141.62,141.58,4.22]
[1763515280633,19.40462836,141.62,141.58,4.22]
[1763515280936,0.1,141.63,141.59,9.65580067]
[1763515281148,0.1,141.63,141.6,8.95580067]
[1763515281356,0.1,141.63,141.62,8.95580067]
[1763515281636,9.61580067,141.69,141.65,18.12096]
[1763515281852,9.61580067,141.71,141.66,4.22]
[1763515282022,0.66,141.71,141.66,13.17580067]
[1763515282336,4.22,141.75,141.66,13.17580067]
[1763515282337,8.95580067,141.72,141.67,9.62580067]
[1763515282516,8.95580067,141.74,141.68,27.07676067]
[1763515282856,0.66,141.75,141.69,4.22]
[1763515283015,0.66,141.75,141.69,13.84580067]
[1763515283016,8.95580067,141.74,141.69,13.84580067]
[1763515283211,8.95580067,141.73,141.69,4.22]
[1763515283510,8.95580067,141.74,141.69,13.84580067]
[1763515283714,9.78882769,141.74,141.69,13.84580067]
[1763515284115,9.78882769,141.74,141.71,18.12096]
[1763515284323,33.55992914,141.81,141.71,18.12096]
[1763515284324,0.66,141.79,141.73,8.95580067]
[1763515284526,8.95580067,141.8,141.75,8.95580067]
[1763515284747,9.78882769,141.79,141.76,4.22]
[1763515284938,18.74462836,141.79,141.73,0.67]
[1763515285248,18.74462836,141.77,141.74,4.22]
[1763515285422,18.74462836,141.77,141.75,4.22]
[1763515285612,18.74462836,141.77,141.72,27.74676067]
[1763515285813,18.74462836,141.75,141.72,18.12096]
[1763515286124,9.78882769,141.73,141.72,4.22]
[1763515286323,19.40462836,141.73,141.68,21.22316154]
[1763515286644,9.78882769,141.73,141.69,4.89]
[1763515287256,9.78882769,141.73,141.7,4.22]
[1763515287445,18.74462836,141.73,141.7,4.22]
[1763515287961,0.66,141.75,141.7,4.22]
[1763515288137,9.78882769,141.72,141.7,4.22]
[1763515288336,9.78882769,141.72,141.71,4.22]
[1763515289234,0.66,141.72,141.71,4.22]
[1763515289441,9.61580067,141.72,141.69,4.22]
[1763515289765,18.74462836,141.7,141.65,27.74676067]
[1763515289929,8.95580067,141.69,141.66,4.22]
[1763515290260,8.95580067,141.67,141.66,4.22]
[1763515290463,8.95580067,141.7,141.66,4.22]
[1763515290621,8.95580067,141.72,141.66,4.89]
[1763515290828,9.78882769,141.71,141.66,13.84580067]
[1763515291320,9.78882769,141.71,141.67,0.67]
[1763515291520,0.66,141.79,141.7,8.95580067]
[1763515291746,8.95580067,141.78,141.73,8.95580067]
[1763515292049,9.78882769,141.78,141.74,13.17580067]
[1763515292223,9.78882769,141.78,141.75,4.22]
[1763515292425,8.95580067,141.79,141.75,4.22]
[1763515292620,9.61580067,141.79,141.75,4.22]
[1763515292847,9.78882769,141.78,141.75,4.22]
[1763515293029,18.74462836,141.78,141.75,4.22]
[1763515293239,18.74462836,141.78,141.72,0.67]
[1763515293240,9.78882769,141.75,141.74,4.22]
[1763515293645,18.74462836,141.75,141.74,4.22]
[1763515293848,9.78882769,141.77,141.74,4.22]
[1763515294043,9.78882769,141.75,141.74,4.22]
[1763515294936,0.66,141.77,141.74,4.22]
[1763515295234,18.74462836,141.75,141.74,4.22]
[1763515295661,9.78882769,141.75,141.74,4.22]
[1763515295836,9.78882769,141.74,141.7,9.78882769]
[1763515296035,9.78882769,141.74,141.6,8.95580067]
[1763515296036,8.95580067,141.72,141.71,4.22]
[1763515296574,8.95580067,141.72,141.67,27.74676067]
[1763515296739,8.95580067,141.72,141.68,4.89]
[1763515296935,2.0,141.8,141.68,4.89]
[1763515296936,2.0,141.8,141.68,23.01096]
[1763515297158,1.93593088,141.84,141.8,3.693]
[1763515297353,1.93593088,141.84,141.83,27.07676067]
[1763515297742,9.63580067,141.91,141.83,36.71256134]
[1763515297939,0.68,141.86,141.83,27.75676067]
[1763515298248,8.95580067,141.91,141.85,8.95580067]
[1763515298565,2.0,141.94,141.86,4.24]
[1763515298566,0.78,141.87,141.86,4.24]
[1763515298774,0.78,141.87,141.85,4.24]
[1763515298938,0.1,141.87,141.86,4.24]
[1763515299141,0.1,141.87,141.86,22.36096]
[1763515299358,0.78,141.87,141.86,22.36096]
[1763515299660,0.1,141.87,141.86,13.19580067]
[1763515300078,0.68,141.93,141.86,13.19580067]
[1763515300289,0.68,141.99,141.89,9.78882769]
[1763515300474,0.68,141.99,141.94,8.95580067]
[1763515300656,2.0,142.0,141.97,8.95580067]
[1763515300863,2.0,142.0,141.98,4.24]
[1763515301059,9.63580067,141.99,141.87,18.12096]
[1763515301273,8.95580067,141.98,141.93,8.95580067]
[1763515301460,0.68,141.98,141.94,4.24]
[1763515301775,8.95580067,141.99,141.88,9.78882769]
[1763515301776,8.95580067,141.99,141.91,18.12096]
[1763515301952,8.95580067,141.99,141.94,8.95580067]
[1763515302148,2.0,142.0,141.91,18.12096]
[1763515302366,2.0,142.0,141.97,8.95580067]
[1763515302547,2.0,142.0,141.98,13.19580067]
[1763515302746,2.0,142.0,141.99,8.95580067]
[1763515303164,2.0,142.0,141.98,13.19580067]
[1763515303370,2.0,142.0,141.99,8.95580067]
[1763515303564,6.17593088,142.13,141.99,8.95580067]
[1763515303565,0.7,142.08,141.99,8.95580067]
[1763515303770,9.65580067,142.1,142.0,9.78882769]
[1763515304073,8.95580067,142.06,142.01,4.24]
[1763515304250,9.78882769,142.1,142.02,4.24]
[1763515304450,8.95580067,142.04,142.02,4.24]
[1763515304677,8.95580067,142.03,141.98,4.24]
[1763515304855,8.95580067,142.02,141.98,4.24]
[1763515305050,0.7,142.07,141.98,4.24]
[1763515305259,0.7,142.07,142.01,8.95580067]
[1763515305458,0.7,142.07,142.03,8.95580067]
[1763515305662,6.17593088,142.13,142.02,4.24]
[1763515305663,8.95580067,142.09,142.04,8.95580067]
[1763515305856,0.7,142.1,142.04,8.95580067]
[1763515306065,9.65580067,142.09,142.05,4.24]
[1763515306493,0.7,142.08,142.05,4.24]
[1763515307053,8.95580067,142.06,142.04,4.24]
[1763515307252,8.95580067,142.06,142.03,4.24]
[1763515307477,9.65580067,142.05,142.03,4.24]
[1763515307781,8.95580067,142.04,141.99,4.24]
[1763515307961,0.7,142.03,141.99,4.24]
[1763515308167,9.65580067,142.03,141.99,4.24]
[1763515308367,8.95580067,142.02,141.99,4.24]
[1763515308682,8.95580067,142.0,141.87,0.70487065]
[1763515308988,8.95580067,141.96,141.9,8.95580067]
[1763515309186,27.90978769,142.03,141.88,4.24]
[1763515309187,8.95580067,141.95,141.89,8.95580067]
[1763515310276,18.12096,142.03,141.92,8.95580067]
[1763515310489,0.7,142.02,141.93,4.24]
[1763515310799,0.7,142.02,141.96,8.95580067]
[1763515310988,8.95580067,142.03,141.98,8.95580067]
[1763515311302,9.65580067,142.03,141.98,8.95580067]
[1763515311501,0.7,142.03,141.99,8.95580067]
[1763515311872,0.7,142.03,141.98,8.95580067]
[1763515312172,9.65580067,142.06,142.0,8.95580067]
[1763515312378,9.65580067,142.06,142.01,4.24]
[1763515312677,0.7,142.05,142.02,4.24]
[1763515313093,6.001338,142.05,142.02,4.24]
[1763515313480,0.7,142.08,142.02,4.24]
[1763515313681,5.301338,142.07,142.02,9.541338]
[1763515313884,5.301338,142.08,142.02,4.24]
[1763515314081,5.301338,142.08,142.03,5.301338]
[1763515314289,1.93593088,142.13,142.04,5.301338]
[1763515314479,5.301338,142.07,142.03,4.24]
[1763515314673,5.301338,142.05,142.03,4.24]
[1763515314872,5.301338,142.04,142.03,4.24]
[1763515315572,6.001338,142.04,141.91,0.70467197]
[1763515315775,6.001338,142.04,141.82,50.0]
[1763515315776,5.301338,141.97,141.88,9.78882769]
[1763515316004,5.301338,141.97,141.92,5.301338]
[1763515316198,5.301338,141.96,141.89,4.24]
[1763515316416,5.301338,141.94,141.89,4.24]
[1763515316617,5.301338,141.93,141.87,5.301338]
[1763515316917,5.301338,141.94,141.88,4.24]
[1763515317086,5.301338,141.89,141.81,20.89530104]
[1763515317412,18.12096,141.92,141.83,4.24]
[1763515317570,5.301338,141.9,141.83,4.24]
[1763515317774,5.301338,141.9,141.85,5.301338]
[1763515317996,5.301338,141.9,141.83,22.36096]
[1763515318212,6.001338,141.9,141.84,5.301338]
[1763515318618,6.001338,141.9,141.85,5.301338]
[1763515318931,5.301338,141.88,141.83,27.662298]
[1763515319226,0.7,141.89,141.8,5.301338]
[1763515319227,5.301338,141.85,141.8,5.301338]
[1763515319510,5.301338,141.88,141.83,5.301338]
[1763515319898,0.7,141.87,141.82,5.301338]
[1763515320097,6.001338,141.87,141.82,5.301338]
[1763515320292,5.301338,141.85,141.8,4.24]
[1763515320515,0.7,141.86,141.78,5.301338]
[1763515320688,0.7,141.85,141.78,5.301338]
[1763515320895,5.301338,141.83,141.78,5.301338]
[1763515321206,5.301338,141.79,141.77,4.24]
[1763515321412,5.301338,141.78,141.72,5.301338]
[1763515321592,6.001338,141.77,141.72,4.24]
[1763515321796,5.301338,141.77,141.72,9.541338]
[1763515322121,9.78882769,141.85,141.76,5.301338]
[1763515322428,6.001338,141.77,141.62,40.40452375]
[1763515322717,5.301338,141.73,141.68,5.301338]
[1763515322932,0.7,141.76,141.71,5.301338]
[1763515323097,0.7,141.76,141.64,24.00004317]
[1763515323098,5.301338,141.8,141.7,4.24]
[1763515323307,5.301338,141.73,141.7,4.24]
[1763515323511,5.301338,141.75,141.7,4.24]
[1763515323722,27.662298,141.8,141.7,4.24]
[1763515323723,5.301338,141.73,141.7,4.24]
[1763515323928,5.301338,141.74,141.7,4.24]
[1763515324316,5.301338,141.71,141.66,4.24]
[1763515324532,18.12096,141.77,141.66,4.24]
[1763515324533,5.301338,141.69,141.66,4.24]
[1763515324705,5.301338,141.68,141.66,4.24]
[1763515325105,0.7,141.67,141.62,5.301338]
[1763515325533,5.301338,141.69,141.63,5.301338]
[1763515325714,2.0,141.77,141.61,4.24]
[1763515325715,6.001338,141.71,141.66,5.301338]
[1763515325915,5.301338,141.74,141.69,5.301338]
[1763515326121,0.7,141.75,141.66,9.541338]
[1763515326331,5.301338,141.72,141.66,9.541338]
[1763515326530,5.301338,141.73,141.68,5.301338]
[1763515326737,0.7,141.75,141.69,5.301338]
[1763515326940,5.301338,141.73,141.68,5.301338]
[1763515327118,5.301338,141.7,141.66,4.24]
[1763515327428,5.301338,141.69,141.64,27.682298]
[1763515327630,0.7,141.68,141.65,5.301338]
[1763515327861,9.78882769,141.75,141.66,5.301338]
[1763515328016,5.301338,141.73,141.67,5.301338]
[1763515328210,6.001338,141.72,141.66,5.301338]
[1763515328417,5.301338,141.68,141.64,4.26]
[1763515328710,0.7,141.71,141.64,4.26]
[1763515328926,5.301338,141.68,141.64,4.26]
[1763515329242,0.7,141.74,141.64,4.26]
[1763515329535,5.301338,141.71,141.66,5.301338]
[1763515329748,0.7,141.73,141.67,5.301338]
[1763515329917,6.001338,141.72,141.67,5.301338]
[1763515330113,5.301338,141.69,141.64,4.26]
[1763515330316,5.301338,141.68,141.64,4.26]
[1763515330544,0.7,141.74,141.64,4.26]
[1763515330835,5.301338,141.66,141.57,0.70636434]
[1763515331041,5.301338,141.67,141.61,5.301338]
[1763515331418,0.7,141.66,141.61,5.301338]
[1763515331618,0.7,141.66,141.58,4.26]
[1763515331619,0.7,141.66,141.62,5.301338]
[1763515332027,0.7,141.66,141.61,5.301338]
[1763515332233,6.001338,141.66,141.59,0.66]
[1763515332618,6.001338,141.66,141.61,5.301338]
[1763515332812,6.001338,141.66,141.6,5.301338]
[1763515333025,0.7,141.66,141.61,5.301338]
[1763515333444,6.001338,141.66,141.61,5.301338]
[1763515333643,0.66,141.65,141.6,5.301338]
[1763515333855,0.66,141.65,141.58,4.26]
[1763515333856,5.301338,141.63,141.58,4.26]
[1763515334146,5.301338,141.64,141.58,9.561338]
[1763515334342,5.961338,141.64,141.58,9.561338]
[1763515334544,0.66,141.63,141.58,9.561338]
[1763515335433,0.66,141.63,141.58,4.26]
[1763515335642,0.66,141.63,141.58,9.561338]
[1763515336362,0.66,141.63,141.59,5.301338]
[1763515336855,5.961338,141.63,141.58,9.561338]
[1763515337156,5.301338,141.62,141.58,4.26]
[1763515337457,0.66,141.62,141.58,4.26]
[1763515337654,0.66,141.64,141.59,5.301338]
[1763515337948,5.301338,141.64,141.59,5.301338]
[1763515338165,0.66,141.63,141.58,9.561338]
[1763515338320,0.66,141.63,141.58,4.26]
[1763515338321,5.301338,141.62,141.58,4.26]
[1763515338517,18.12096,141.65,141.53,5.301338]
[1763515338518,0.66,141.61,141.53,5.301338]
[1763515338736,5.301338,141.59,141.54,4.26]
[1763515338944,0.66,141.61,141.54,4.26]
[1763515339143,5.301338,141.59,141.54,4.26]
[1763515339326,0.66,141.6,141.55,5.301338]
[1763515339526,5.961338,141.63,141.58,5.301338]
[1763515339725,5.301338,141.64,141.59,9.561338]
[1763515340247,0.66,141.63,141.59,9.561338]
[1763515340745,0.66,141.63,141.6,5.301338]
[1763515341042,0.66,141.63,141.59,9.561338]
[1763515341242,5.961338,141.66,141.6,5.301338]
[1763515341546,5.961338,141.65,141.59,4.26]
[1763515341733,5.301338,141.64,141.59,4.26]
[1763515342051,5.301338,141.61,141.59,4.26]
[1763515342347,0.70511916,141.67,141.59,4.26]
[1763515342348,5.301338,141.6,141.59,4.26]
[1763515342522,5.301338,141.6,141.56,4.26]
[1763515342720,0.67,141.59,141.56,4.26]
[1763515342933,0.67,141.59,141.56,9.561338]
[1763515343855,5.971338,141.62,141.57,5.301338]
[1763515344026,0.67,141.62,141.57,5.301338]
[1763515344225,27.90978769,141.65,141.59,5.301338]
[1763515344226,5.301338,141.64,141.59,5.301338]
[1763515344421,0.67,141.65,141.61,5.301338]
[1763515344850,0.67,141.65,141.6,4.26]
[1763515344851,5.971338,141.65,141.6,9.561338]
[1763515345052,5.301338,141.63,141.6,4.26]
[1763515345349,5.301338,141.62,141.6,4.26]
[1763515345529,9.78882769,141.66,141.6,4.26]
[1763515345530,5.301338,141.63,141.6,4.26]
[1763515345921,5.971338,141.62,141.6,4.26]
[1763515346352,0.67,141.61,141.57,9.561338]
[1763515346720,5.301338,141.64,141.58,5.301338]
[1763515346938,5.971338,141.65,141.59,5.301338]
[1763515347146,0.67,141.65,141.6,5.301338]
[1763515347342,5.971338,141.65,141.6,5.301338]
[1763515347534,5.971338,141.65,141.57,4.93]
[1763515347835,0.67,141.64,141.6,5.301338]
[1763515348135,5.971338,141.64,141.59,5.301338]
[1763515348544,0.67,141.63,141.59,5.301338]
[1763515349749,0.67,141.63,141.6,5.301338]
[1763515350048,0.67,141.63,141.57,4.93]
[1763515350049,5.301338,141.62,141.57,4.26]
[1763515350246,0.67,141.61,141.57,9.561338]
[1763515350628,0.67,141.61,141.57,4.26]
[1763515350856,5.301338,141.6,141.57,4.26]
[1763515351052,0.67,141.61,141.49,0.87]
[1763515351053,5.301338,141.59,141.49,0.87]
[1763515351261,5.301338,141.53,141.49,0.2]
[1763515351554,5.301338,141.54,141.49,5.501338]
[1763515351857,5.301338,141.55,141.49,5.501338]
[1763515352235,5.971338,141.54,141.49,5.501338]
[1763515352741,27.682298,141.6,141.49,0.87]
[1763515352742,5.971338,141.56,141.49,0.87]
[1763515352929,5.971338,141.56,141.51,5.301338]
[1763515353129,5.971338,141.56,141.51,9.561338]
[1763515353335,5.301338,141.57,141.52,5.301338]
[1763515353536,5.971338,141.58,141.52,5.301338]
[1763515353764,5.301338,141.56,141.51,4.26]
[1763515353955,5.301338,141.56,141.51,9.561338]
[1763515354258,0.67,141.56,141.53,5.301338]
[1763515354447,0.67,141.56,141.52,5.301338]
[1763515354653,5.971338,141.55,141.51,4.26]
[1763515355050,5.301338,141.54,141.51,4.26]
[1763515355242,0.67,141.54,141.51,4.26]
[1763515355760,5.971338,141.54,141.51,4.26]
[1763515357762,0.67,141.53,141.51,4.26]
[1763515360164,5.971338,141.53,141.49,0.2]
[1763515360650,5.971338,141.52,141.49,0.2]
[1763515360851,0.67,141.51,141.49,0.2]
[1763515361637,5.971338,141.51,141.49,0.2]
[1763515362183,18.12096,141.55,141.49,0.2]
[1763515362184,5.971338,141.5,141.49,0.2]
[1763515362635,5.301338,141.51,141.49,0.2]
[1763515363040,0.67,141.5,141.49,0.2]
[1763515364454,5.971338,141.5,141.49,0.2]
[1763515365163,0.67,141.5,141.49,0.2]
[1763515365342,5.971338,141.5,141.49,0.2]
[1763515367449,0.67,141.55,141.49,0.2]
[1763515367650,5.971338,141.54,141.49,0.2]
[1763515367869,5.301338,141.53,141.49,0.2]
[1763515368063,5.971338,141.53,141.49,0.2]
[1763515368276,0.67,141.52,141.49,0.2]
[1763515368953,5.971338,141.52,141.49,0.2]
[1763515369152,5.301338,141.51,141.49,0.2]
[1763515369387,5.971338,141.51,141.49,0.2]
[1763515369675,0.70511916,141.54,141.49,0.2]
[1763515369676,5.971338,141.53,141.49,0.2]
[1763515369876,5.301338,141.52,141.49,0.2]
[1763515370084,5.971338,141.52,141.49,0.2]
[1763515370285,0.67,141.51,141.49,0.2]
[1763515370578,0.67,141.52,141.49,0.2]
[1763515372693,0.70511916,141.54,141.49,10.471338]
[1763515372889,8.92392126,141.55,141.5,8.92392126]
[1763515373185,0.67,141.54,141.5,8.92392126]
[1763515373481,0.67,141.54,141.49,5.17]
[1763515373693,0.67,141.54,141.5,8.92392126]
[1763515375194,0.67,141.54,141.48,0.2]
[1763515375195,8.92392126,141.51,141.48,0.2]
[1763515375351,8.92392126,141.49,141.48,0.2]
[1763515375885,9.59392126,141.49,141.48,0.2]
[1763515376267,9.78882769,141.48,141.42,4.24]
[1763515376581,8.92392126,141.44,141.42,4.24]
[1763515376877,8.92392126,141.45,141.42,4.24]
[1763515377389,9.59392126,141.45,141.42,4.24]
[1763515377879,0.67,141.48,141.42,4.95]
[1763515378060,0.67,141.48,141.42,4.24]
[1763515378061,8.92392126,141.45,141.42,4.24]
[1763515378258,8.92392126,141.44,141.4,4.24]
[1763515378671,8.92392126,141.44,141.4,4.95]
[1763515379063,8.92392126,141.45,141.4,4.95]
[1763515379396,10.49394685,141.5,141.41,9.63392126]
[1763515379568,8.92392126,141.47,141.42,8.92392126]
[1763515379883,0.67,141.48,141.41,9.63392126]
[1763515380087,8.92392126,141.47,141.42,8.92392126]
[1763515380385,8.92392126,141.47,141.42,9.63392126]
[1763515380578,8.92392126,141.47,141.43,0.71]
[1763515381064,9.59392126,141.49,141.43,0.71]
[1763515381266,8.92392126,141.48,141.43,0.71]
[1763515381476,8.92392126,141.47,141.42,8.92392126]
[1763515381861,9.59392126,141.47,141.42,8.92392126]